fUSD/lending_fUSD_20251230
["ID","MTS","AMOUNT","RATE_DAILY","PERIOD"]
[400102364,1767114640552,-500.0,0.0001669,2]
[400102366,1767114640563,-151.0,0.0001669,2]
[400102368,1767114640572,-500.0,0.0001669,2]
[400102370,1767114640583,-151.0,0.0001669,2]
[400102372,1767114640593,-521.13737359,0.0001669,2]
[400102374,1767114640603,-151.0,0.0001669,2]
[400102375,1767114640613,-151.0,0.0001669,2]
[400102377,1767114640623,-151.0,0.0001669,2]
[400102380,1767114640638,-153.66184867,0.0001669,2]
[400102382,1767114640648,-151.0,0.0001669,2]
[400102384,1767114640657,-151.0,0.0001669,2]
[400102385,1767114640666,-151.0,0.0001669,2]
[400102387,1767114640676,-151.0,0.0001669,2]
[400102389,1767114640686,-200.0,0.0001669,2]
[400102391,1767114640696,-151.0,0.0001669,2]
[400102393,1767114640706,-151.0,0.0001669,2]
[400102395,1767114640716,-151.0,0.0001669,2]
[400102397,1767114640725,-151.0,0.0001669,2]
[400102399,1767114640735,-151.0,0.0001669,2]
[400102401,1767114640746,-500.0,0.0001669,2]
[400102403,1767114640756,-200.0,0.0001669,2]
[400102405,1767114640766,-151.0,0.0001669,2]
[400102407,1767114640775,-151.0,0.0001669,2]
[400102408,1767114640785,-200.0,0.0001669,2]
[400102410,1767114640795,-98048.31396019,0.0001669,2]
[400102412,1767114640805,-500.0,0.00016699,2]
[400102414,1767114640815,-500.0,0.00016699,2]
[400102416,1767114640824,-500.0,0.00016699,2]
[400102418,1767114640834,-451.40062189,0.00016699,2]
[400102420,1767114640844,-491.17772681,0.00016699,2]
[400102422,1767114640854,-414.78823876,0.00016699,2]
[400102424,1767114640863,-183.34061654,0.000167,2]
[400102426,1767114640873,-236.14715176,0.000167,2]
[400102428,1767114640883,-151.67966389,0.000167,2]
[400102430,1767114640893,-1000.0,0.00016737,2]
[400102432,1767114640903,-200.0,0.00016815,2]
[400102433,1767114640913,-436.215,0.0001683,2]
[400102435,1767114640923,-500.0,0.00016873,2]
[400102437,1767114640933,-500.0,0.00016873,2]
[400102439,1767114640942,-500.0,0.00016873,2]
[400102441,1767114640952,-763.0399999,0.00016933,2]
[400102443,1767114640962,-280.5267708,0.00016933,2]
[400102445,1767114640971,-1780.9,0.00016942,2]
[400102447,1767114640981,-500.0,0.00016973,2]
[400102449,1767114640996,-312588.34954293,0.00017,2]
[400102738,1767114644667,-4122.76392,0.00017,2]
[400102739,1767114644720,-615.34198749,0.00017,2]
[400102740,1767114644816,-21787.63897321,0.00017,2]
[400102742,1767114646199,-151.0,0.00016305,2]
[400102743,1767114646210,-151.0,0.00016305,2]
[400102744,1767114646219,-933.93486426,0.00017,2]
[400102745,1767114646231,-11910.53209238,0.00017,2]
[400102746,1767114646252,-384.79023,0.00017,2]
[400102747,1767114646268,-506.90891425,0.00017,2]
[400102749,1767114646520,-72172.36143108,0.00017,2]
[400102751,1767114646531,-903.93255032,0.00017,2]
[400102752,1767114646542,-483.93606528,0.00017,2]
[400102753,1767114646552,-216.25169817,0.00017,2]
[400102754,1767114646562,-250.0,0.00017,2]
[400102755,1767114646572,-27114.1231481,0.00017,2]
[400102756,1767114646582,-4178.01576593,0.00017032,2]
[400102757,1767114646593,-166.84,0.00017043,2]
[400102758,1767114646603,-750.55,0.00017082,2]
[400102759,1767114646613,-994.69,0.00017197,2]
[400102760,1767114646622,-500.0,0.00017421,2]
[400102761,1767114646632,-1000.0,0.00017421,2]
[400102762,1767114646642,-166.84,0.00017718,2]
[400102763,1767114646651,-500.0,0.00017743,2]
[400102764,1767114646661,-265.0,0.00017807,2]
[400102765,1767114646671,-250.0,0.0001793,2]
[400102766,1767114646681,-1005.46621584,0.00017968,2]
[400102767,1767114646692,-1680.0,0.00017975,2]
[400102768,1767114646702,-204.22,0.00018082,2]
[400102769,1767114646712,-322.6107,0.00018199,2]
[400102770,1767114646722,-9211.34798985,0.00018199,2]
[400102771,1767114646731,-500.0,0.00018199,2]
[400102772,1767114646741,-500.0,0.00018199,2]
[400102773,1767114646751,-500.0,0.00018199,2]
[400102774,1767114646761,-500.0,0.00018199,2]
[400102775,1767114646771,-250.0,0.00018199,2]
[400102776,1767114646781,-500.0,0.00018199,2]
[400102777,1767114646790,-250.0,0.00018199,2]
[400102778,1767114646800,-500.0,0.00018199,2]
[400102779,1767114646810,-250.0,0.00018199,2]
[400102780,1767114646819,-358.3947287,0.00018199,2]
[400102781,1767114646829,-250.0,0.00018199,2]
[400102782,1767114646839,-250.0,0.00018199,2]
[400102783,1767114646849,-500.0,0.00018199,2]
[400102784,1767114646862,-250.0,0.00018199,2]
[400102785,1767114646872,-500.0,0.00018199,2]
[400102786,1767114647119,-250.0,0.00018199,2]
[400102787,1767114647130,-500.0,0.00018199,2]
[400102788,1767114647140,-250.0,0.00018199,2]
[400102789,1767114647151,-500.0,0.00018199,2]
[400102790,1767114647161,-250.0,0.00018199,2]
[400102791,1767114647172,-500.0,0.00018199,2]
[400102792,1767114647182,-500.0,0.00018199,2]
[400102793,1767114647193,-250.0,0.00018199,2]
[400102794,1767114647203,-200.0,0.00018199,2]
[400102795,1767114647213,-500.0,0.00018199,2]
[400102796,1767114647223,-500.0,0.00018199,2]
[400102797,1767114647233,-250.0,0.00018199,2]
[400102798,1767114647243,-198.82276029,0.00018199,2]
[400102799,1767114647253,-500.0,0.00018199,2]
[400102800,1767114647267,-500.0,0.00018199,2]
[400102801,1767114647277,-500.0,0.00018199,2]
[400102802,1767114647286,-500.0,0.00018199,2]
[400102803,1767114647296,-500.0,0.00018199,2]
[400102804,1767114647306,-500.0,0.00018199,2]
[400102805,1767114647315,-500.0,0.00018199,2]
[400102806,1767114647327,-500.0,0.00018199,2]
[400102807,1767114647337,-500.0,0.00018199,2]
[400102808,1767114647347,-500.0,0.00018199,2]
[400102809,1767114647358,-500.0,0.00018199,2]
[400102810,1767114647368,-500.0,0.00018199,2]
[400102811,1767114647378,-622.95838781,0.00018199,2]
[400102812,1767114647405,-500.0,0.00018199,2]
[400102813,1767114647415,-9552.16786547,0.00018254,2]
[400102814,1767114647426,-9905.5980765,0.00018309,2]
[400102815,1767114647441,-10272.10520533,0.00018364,2]
[400102816,1767114647451,-166.84,0.00018393,2]
[400102817,1767114647461,-10652.17309792,0.00018419,2]
[400102818,1767114647472,-11046.30350255,0.00018474,2]
[400102819,1767114647483,-3893.6,0.00018492,2]
[400102820,1767114647495,-5453.21828535,0.00018529,2]
[400102821,1767114647508,-2334.0,0.00018808,2]
[400102822,1767114647519,-1000.0,0.00018829,2]
[400102823,1767114647530,-166.84,0.00019069,2]
[400102824,1767114647540,-6049.9786403,0.00019156,2]
[400102825,1767114647550,-11857.53882914,0.00019311,2]
[400102826,1767114647560,-1349.9327029,0.00019637,2]
[400102827,1767114647570,-2351.0,0.00019744,2]
[400102828,1767114647581,-177.38,0.00019898,2]
[400102829,1767114647591,-500.0,0.000199,2]
[400102830,1767114647601,-500.0,0.000199,2]
[400102831,1767114647611,-500.0,0.000199,2]
[400102832,1767114647621,-206.02402601,0.000199,2]
[400102833,1767114647630,-500.0,0.000199,2]
[400102834,1767114647641,-517.6,0.00020187,2]
[400102835,1767114647651,-1000.0,0.00020448,2]
[400102836,1767114647661,-500.0,0.00020548,2]
[400102837,1767114647671,-475.597,0.00020739,2]
[400102838,1767114647682,-2218.456,0.00020739,2]
[400102839,1767114647693,-913.0,0.00020739,2]
[400102840,1767114647703,-204.22,0.00020795,2]
[400102841,1767114647713,-1000.0,0.00020921,2]
[400102842,1767114647723,-434.95618184,0.00020996,2]
[400102843,1767114647732,-520.0,0.00021504,2]
[400102844,1767114647742,-3292.0,0.00021687,2]
[400102845,1767114647753,-520.0,0.00021783,2]
[400102846,1767114647764,-5000.0,0.00021918,2]
[400102847,1767114647774,-520.0,0.0002198,2]
[400102848,1767114647784,-158.88,0.00022,7]
[400102849,1767114647795,-11857.53882914,0.00022021,2]
[400102850,1767114647805,-520.0,0.0002211,2]
[400102851,1767114647815,-520.0,0.00022214,2]
[400102852,1767114647825,-520.0,0.00022217,2]
[400102853,1767114647836,-208.74426,0.000225,2]
[400102854,1767114647846,-208.74426,0.000225,2]
[400102855,1767114647855,-208.74427,0.000225,2]
[400102856,1767114647865,-208.74426,0.000225,2]
[400102857,1767114647875,-200.0,0.00022542,2]
[400102858,1767114647885,-9999.99,0.00022562,2]
[400102859,1767114647894,-878.68,0.00022562,2]
[400102860,1767114647904,-208.74426,0.00022724,2]
[400102861,1767114647914,-208.74427,0.00022724,2]
[400102862,1767114647924,-208.74426,0.00022724,2]
[400102863,1767114647934,-208.74426,0.00022724,2]
[400102864,1767114647944,-208.74426,0.00022724,2]
[400102865,1767114647953,-208.74427,0.00022724,2]
[400102866,1767114647963,-1000.0,0.00023014,2]
[400102867,1767114647973,-161.73588616,0.00023156,2]
[400102868,1767114647984,-168.0,0.00023293,2]
[400102869,1767114647994,-500.0,0.00023353,2]
[400102870,1767114648003,-9999.99,0.00023368,2]
[400102871,1767114648014,-9999.99,0.00023368,2]
[400102872,1767114648024,-150.99,0.00023368,2]
[400102873,1767114648034,-299.99,0.00023368,7]
[400102874,1767114648044,-170.4,0.00023368,2]
[400102875,1767114648054,-499.99,0.00023368,2]
[400102876,1767114648065,-168.0,0.00023405,2]
[400102877,1767114648075,-168.0,0.00023574,2]
[400102878,1767114648085,-168.0,0.00023578,2]
[400102879,1767114648095,-168.0,0.00023647,2]
[400102880,1767114648105,-168.0,0.00023688,2]
[400102881,1767114648114,-168.0,0.00023698,2]
[400102882,1767114648124,-168.0,0.00023701,2]
[400102883,1767114648137,-168.0,0.00023708,2]
[400102884,1767114648147,-1364.91486209,0.00023721,2]
[400102885,1767114648157,-168.0,0.00023729,2]
[400102886,1767114648170,-913.0,0.00023739,2]
[400102887,1767114648185,-168.0,0.00023781,2]
[400102888,1767114648195,-399.94958773,0.00023784,2]
[400102889,1767114648205,-168.0,0.00023796,2]
[400102890,1767114648215,-4609.0,0.0002382,2]
[400102891,1767114648227,-261.83891477,0.00023937,2]
[400102892,1767114648236,-554.64,0.00023973,2]
[400102893,1767114648246,-163.04,0.00023993,2]
[400102894,1767114648256,-158.88,0.00024,7]
[400102895,1767114648266,-168.0,0.00024,2]
[400102896,1767114648275,-168.0,0.00024055,2]
[400102897,1767114648285,-168.0,0.00024074,2]
[400102898,1767114648296,-994.69,0.00024076,2]
[400102899,1767114648306,-168.0,0.00024083,2]
[400102900,1767114648316,-168.0,0.00024086,2]
[400102901,1767114648326,-168.0,0.00024092,2]
[400102902,1767114648337,-168.0,0.00024101,2]
[400102903,1767114648347,-4580.12087482,0.0002437,2]
[400102904,1767114648357,-1000.0,0.00024658,2]
[400102905,1767114648368,-11857.53882914,0.00024732,2]
[400102906,1767114648378,-474.5,0.00024795,2]
[400102907,1767114648387,-544.85,0.00024795,2]
[400102908,1767114648397,-465.28,0.00024795,2]
[400102909,1767114648408,-129501.11065177,0.000248,3]
[400102910,1767115234164,592.113848,0.00030137,120]
[400102911,1767115520548,3202.43272827,9e-05,2]
[400102912,1767115526222,1025.51521056,0.000108,2]
[400102914,1767115555639,153.25,9.21e-05,2]
[400102915,1767115566103,5536.80747036,0.00011,2]
[400102940,1767115765146,-482.57,0.00013699,2]
[400102941,1767115765171,-365.06844502,0.00014976,2]
[400103071,1767115832443,-748.39,0.0001597,2]
[400103072,1767115832454,-1046.83834089,0.00015999,2]
[400103073,1767115832467,-153.16165911,0.00015999,2]
[400103074,1767115832482,-300.0,0.00015999,2]
[400103075,1767115832494,-252.0141,0.00015999,2]
[400103076,1767115832507,-947.9859,0.00015999,2]
[400103098,1767115832741,-300.0,0.00015999,2]
[400103101,1767115832753,-500.0,0.00015999,2]
[400103103,1767115832764,-57362.45218754,0.00016,2]
[400103111,1767115832835,-500.0,0.00015999,2]
[400103113,1767115832847,-96.38,0.00015999,2]
[400103133,1767115838368,-116.7092668,0.00015999,2]
[400103134,1767115838379,-500.0,0.00015999,2]
[400103135,1767115838389,-500.0,0.00015999,2]
[400103136,1767115838400,-500.0,0.00015999,2]
[400103137,1767115838410,-500.0,0.00015999,2]
[400103138,1767115838421,-500.0,0.00015999,2]
[400103139,1767115838432,-500.0,0.00015999,2]
[400103140,1767115838442,-500.0,0.00015999,2]
[400103141,1767115838453,-294.77621107,0.00015999,2]
[400103142,1767115838463,-500.0,0.00015999,2]
[400103143,1767115838473,-500.0,0.00015999,2]
[400103144,1767115838483,-500.0,0.00015999,2]
[400103145,1767115838493,-500.0,0.00015999,2]
[400103146,1767115838504,-4477.74526574,0.00016,2]
[400103147,1767115838515,-19521.12320217,0.00016,4]
[400103148,1767115838557,-8859.55477781,0.00016,4]
[400103322,1767115840421,-596.298,0.00016,4]
[400103335,1767115840520,-4365.43074627,0.00016,4]
[400103337,1767115840532,-994.69738989,0.00016,4]
[400103343,1767115840583,-376651.40649292,0.00016,4]
[400103345,1767115840593,-151.0,0.00016246,2]
[400103347,1767115840603,-151.0,0.00016246,2]
[400103349,1767115840613,-237.2301596,0.00016289,2]
[400103351,1767115840623,-325.4903955,0.00016298,2]
[400103353,1767115840634,-500.0,0.00016298,2]
[400103355,1767115840644,-305.55894114,0.00016298,2]
[400103357,1767115840654,-65543.26135575,0.00016299,2]
[400103372,1767115840795,-10540.5244921,0.00016299,2]
[400103375,1767115840811,-1746.48,0.00016299,2]
[400103380,1767115840857,-4493.96629721,0.00016299,2]
[400103492,1767115844068,-566.94766709,0.00016146,2]
[400103493,1767115844079,-180.46396185,0.000162,2]
[400103494,1767115844089,-1715.76743593,0.00016299,2]
[400103495,1767115844100,-9122.49793244,0.00016299,2]
[400103496,1767115844119,-691.24287986,0.00016299,2]
[400103497,1767115844130,-1292.21190686,0.00016299,2]
[400103498,1767115844142,-1573.13458229,0.00016299,2]
[400103499,1767115844153,-1650.68809694,0.00016299,2]
[400103500,1767115844164,-916.73474021,0.00016299,2]
[400103501,1767115844176,-877.07771091,0.00016299,2]
[400103502,1767115844187,-656.42984484,0.00016299,2]
[400103503,1767115844199,-480.14190281,0.00016299,2]
[400103504,1767115844211,-4779.35825849,0.00016299,2]
[400103505,1767115844918,-870810.49689663,0.00016299,2]
[400103506,1767115844930,-834.84277497,0.00016299,2]
[400103522,1767115846352,-5893.178389,0.00016299,2]
[400103523,1767115846370,-3511.30381811,0.00016299,2]
[400103524,1767115846408,-380.99013,0.00016299,2]
[400103525,1767115846419,-3317.61617399,0.00016299,2]
[400103526,1767115846431,-986.89522002,0.00016299,2]
[400103527,1767115846519,-580.0299999,0.00016299,2]
[400103534,1767116963142,-250.0,0.0001515,2]
[400103535,1767116963182,-220.36525605,0.00015188,2]
[400103536,1767116963297,222.68249,0.00015074,2]
[400103538,1767117011907,1428.73,0.0001508,2]
[400103548,1767117031523,-1118.76,0.00015287,2]
[400103772,1767117037519,-32.24,0.00015287,2]
[400103774,1767117037529,-1200.0,0.00015287,2]
[400103775,1767117037539,-150.0,0.00015288,2]
[400103776,1767117037549,-239.75748021,0.00015288,2]
[400103777,1767117037560,-150.0,0.00015288,2]
[400103778,1767117037570,-150.0,0.00015288,2]
[400103779,1767117037580,-150.0,0.00015288,2]
[400103780,1767117037590,-150.0,0.00015288,2]
[400103781,1767117037599,-150.0,0.00015288,2]
[400103782,1767117037610,-150.0,0.00015288,2]
[400103783,1767117037620,-58.2499107,0.00015288,2]
[400103784,1767117037632,-92.5641969,0.00015288,2]
[400103785,1767117037642,-150.0,0.00015288,2]
[400103786,1767117037652,-150.0,0.00015288,2]
[400103787,1767117037662,-625.58,0.00015288,2]
[400103788,1767117037672,-163.04,0.00015453,2]
[400103789,1767117037682,-150.0,0.0001553,2]
[400103790,1767117037691,-9623.87629575,0.00015555,10]
[400103791,1767117037703,-3365.87113723,0.00015555,10]
[400103792,1767117037714,-947.31022782,0.00015555,10]
[400103793,1767117037754,-635.82318134,0.00015555,10]
[400103794,1767117037766,-1120.43290127,0.00015555,10]
[400103795,1767117037778,-11142.39539457,0.00015555,10]
[400103796,1767117037789,-5270.24986202,0.00015555,10]
[400103797,1767117037799,-625.58,0.00015562,2]
[400103798,1767117037809,-150.0,0.00015627,2]
[400103799,1767117037819,-1000.0,0.00015634,2]
[400103800,1767117037830,-200.0,0.00015643,2]
[400103802,1767117037840,-300.0,0.00015651,2]
[400103804,1767117037850,-200.0,0.00015652,2]
[400103806,1767117037860,-500.0,0.00015678,3]
[400103808,1767117037871,-1852.42,0.0001577,2]
[400103810,1767117037881,-150.0,0.00015773,2]
[400103812,1767117037891,-625.58,0.00015836,2]
[400103814,1767117037900,-1626.96345135,0.00015849,2]
[400103816,1767117037913,-2303.20654865,0.00015849,2]
[400103818,1767117037924,-151.0,0.00015961,2]
[400103820,1767117037934,-151.0,0.00015961,2]
[400103822,1767117037943,-151.0,0.00015962,2]
[400103824,1767117037954,-151.0,0.00015962,2]
[400103826,1767117037964,-151.0,0.00015963,2]
[400103828,1767117037973,-151.0,0.00015963,2]
[400103830,1767117037983,-151.0,0.00015964,2]
[400103832,1767117037993,-151.0,0.00015964,2]
[400103834,1767117038003,-150.0,0.00015967,2]
[400103836,1767117038012,-414.78823876,0.00015999,2]
[400103838,1767117038023,-500.0,0.00015999,2]
[400103840,1767117038034,-150.0,0.00016016,2]
[400103843,1767117038045,-236.1822,0.00016099,2]
[400103844,1767117038055,-133.56020007,0.0001611,2]
[400103847,1767117038069,-41.18115245,0.0001611,2]
[400103849,1767117038079,-625.58,0.0001611,2]
[400103851,1767117038089,-436.215,0.0001614,2]
[400103853,1767117038100,-500.0,0.00016198,2]
[400103855,1767117038112,-388.6936943,0.00016198,2]
[400103857,1767117038123,-325.4903955,0.00016198,2]
[400103859,1767117038133,-254.97513456,0.00016198,2]
[400103861,1767117038144,-500.0,0.00016198,2]
[400103863,1767117038157,-9368.15003194,0.00016199,2]
[400103865,1767117038170,-1282.2401957,0.00016199,2]
[400103992,1767117039528,-151.0,0.0001596,2]
[400103994,1767117039538,-151.0,0.0001596,2]
[400103996,1767117039547,-408892.13616515,0.00016199,2]
[400103999,1767117039558,-573.674504,0.00016199,2]
[400104002,1767117039579,-2096.4458437,0.00016199,2]
[400104004,1767117039590,-883.21833723,0.00016199,2]
[400104006,1767117039601,-14587.53601149,0.00016199,2]
[400104011,1767117039633,-4314.1106964,0.00016199,2]
[400104013,1767117039644,-310.71335497,0.00016199,2]
[400104015,1767117039655,-12642.22382915,0.00016199,2]
[400104017,1767117039666,-387.387,0.00016199,2]
[400104019,1767117039677,-10045.45113752,0.00016199,2]
[400104022,1767117039689,-269.64599,0.00016199,2]
[400104033,1767117039791,-79111.40015416,0.00016199,2]
[400104036,1767117039846,-78921.91925055,0.00016199,2]
[400104037,1767117039858,-899.99975,0.00016199,2]
[400104038,1767117039899,-9080.01859324,0.00016199,2]
[400104039,1767117039911,-8635.59488096,0.00016199,2]
[400104049,1767117043060,-17700.0,0.00016199,2]
[400104050,1767117043072,-433.02211093,0.00016199,2]
[400104051,1767117043083,-870.0,0.00016199,2]
[400104052,1767117043114,-3304.01870265,0.00016199,2]
[400104053,1767117043127,-313.15766995,0.00016199,2]
[400104055,1767117043168,-854.55749319,0.00016199,2]
[400104056,1767117043180,-26293.79546409,0.00016199,2]
[400104057,1767117043799,-196205.09905489,0.00016199,2]
[400104058,1767117043811,-448.80928647,0.00016199,2]
[400104059,1767117043823,-361.25330577,0.00016199,2]
[400104060,1767117043856,-1387.84169527,0.00016199,2]
[400104066,1767117045532,-34573.06622596,0.00016199,2]
[400104067,1767117045544,-3875.51419,0.00016199,2]
[400104068,1767117045585,-3857.7123853,0.00016199,2]
[400104069,1767117045596,-878.15443804,0.00016199,2]
[400104074,1767117122065,168.36,0.00012494,2]
[400104133,1767118231561,-303.70762675,0.00013943,2]
[400104134,1767118231572,-265.0,0.00013943,2]
[400104135,1767118231583,-482.85764965,0.00014029,2]
[400104136,1767118231662,-280.11180403,0.00014029,2]
[400104137,1767118231674,-434.30268977,0.00014043,2]
[400104138,1767118231685,-166.66,0.00014056,2]
[400104139,1767118231696,-8.17855786,0.00014075,2]
[400104140,1767118231717,-291.82144214,0.00014075,2]
[400104141,1767118231727,-300.0,0.00014092,2]
[400104142,1767118231739,-300.0,0.00014092,2]
[400104143,1767118231750,-1200.0,0.00014092,2]
[400104144,1767118231760,-300.0,0.00014093,2]
[400104145,1767118231770,-195.0,0.00014093,2]
[400104146,1767118231779,-2500.0,0.00014093,2]
[400104147,1767118231789,-1200.0,0.00014129,2]
[400104148,1767118231799,-1834.48767959,0.0001413,2]
[400104149,1767118231810,-579.13788336,0.0001413,2]
[400104150,1767118231820,-422.55489817,0.00014167,2]
[400104152,1767118231830,-250.0,0.00014204,2]
[400104154,1767118231840,-225.28,0.00014304,2]
[400104156,1767118231850,-166.66,0.00014352,2]
[400104158,1767118231859,-999.0,0.00014632,3]
[400104160,1767118231869,-166.66,0.00014648,2]
[400104162,1767118231879,-1049.08,0.0001468,2]
[400104164,1767118231889,-762.96945366,0.00014815,2]
[400104166,1767118231899,-166.66,0.00014944,2]
[400104168,1767118231909,-166.66,0.0001524,2]
[400104170,1767118231918,-361.17363324,0.00015242,2]
[400104172,1767118231930,-150.0,0.00015288,2]
[400104174,1767118231940,-150.00000001,0.00015288,2]
[400104176,1767118231950,-228.01502036,0.00015288,2]
[400104178,1767118231959,-150.0,0.00015288,2]
[400104181,1767118231969,-150.0,0.00015288,2]
[400104183,1767118231984,-500.0,0.00015297,2]
[400104185,1767118231994,-300.0,0.00015337,2]
[400104188,1767118232004,-300.0,0.00015337,2]
[400104191,1767118232014,-164.00903292,0.00015389,2]
[400104194,1767118232023,-3219.34,0.00015389,2]
[400104197,1767118232033,-1228.23,0.00015397,2]
[400104200,1767118232042,-300.0,0.00015432,2]
[400104202,1767118232052,-219.55,0.00015432,2]
[400104204,1767118232062,-420.0,0.00015438,2]
[400104206,1767118232072,-195.0,0.00015462,2]
[400104208,1767118232081,-250.0,0.00015462,2]
[400104210,1767118232091,-1179.1155751,0.00015462,2]
[400104212,1767118232100,-2500.0,0.00015462,2]
[400104214,1767118232110,-600.0,0.00015462,2]
[400104216,1767118232120,-300.0,0.00015462,2]
[400104218,1767118232130,-300.0,0.00015462,2]
[400104220,1767118232139,-195.0,0.00015462,2]
[400104222,1767118232149,-2500.0,0.00015462,2]
[400104224,1767118232159,-600.0,0.00015462,2]
[400104226,1767118232170,-288.9145481,0.00015462,2]
[400104228,1767118232180,-300.0,0.00015462,2]
[400104231,1767118232191,-1680.0,0.00015502,2]
[400104233,1767118232201,-166.66,0.00015536,2]
[400104235,1767118232212,-3240.0,0.00015537,2]
[400104237,1767118232222,-762.96945366,0.000156,2]
[400104239,1767118232232,-150.0,0.00015696,2]
[400104241,1767118232242,-150.0,0.00015696,2]
[400104243,1767118232251,-150.0,0.00015696,2]
[400104245,1767118232261,-500.0,0.00015696,2]
[400104247,1767118232271,-150.0,0.00015696,2]
[400104249,1767118232281,-500.0,0.00015696,2]
[400104251,1767118232291,-150.0,0.00015696,2]
[400104253,1767118232301,-157.57610681,0.00015696,2]
[400104255,1767118232312,-26646.10330272,0.000157,2]
[400104257,1767118232325,-18664.36179728,0.000157,2]
[400104259,1767118232334,-5390.2892,0.000157,2]
[400104262,1767118232345,-9154.99230089,0.00015705,2]
[400104264,1767118232355,-150.0,0.00015751,2]
[400104266,1767118232366,-150.0,0.00015751,2]
[400104268,1767118232376,-150.0,0.00015751,2]
[400104270,1767118232386,-500.0,0.00015751,2]
[400104272,1767118232395,-500.0,0.00015751,2]
[400104274,1767118232405,-150.0,0.00015751,2]
[400104276,1767118232415,-613.65,0.0001579,3]
[400104278,1767118232427,-500.0,0.00015799,2]
[400104280,1767118232437,-500.0,0.00015799,2]
[400104282,1767118232447,-500.0,0.00015799,2]
[400104284,1767118232456,-500.0,0.00015799,2]
[400104286,1767118232466,-256.78530033,0.00015799,2]
[400104288,1767118232476,-98048.31396019,0.000158,2]
[400104290,1767118232489,-150.0,0.00015806,2]
[400104292,1767118232500,-266.66976801,0.00015806,2]
[400104294,1767118232510,-150.0,0.00015806,2]
[400104296,1767118232520,-500.0,0.00015806,2]
[400104299,1767118232530,-291.53661505,0.00015806,2]
[400104301,1767118232540,-150.0,0.00015806,2]
[400104303,1767118232550,-9154.99230081,0.00015838,2]
[400104305,1767118232559,-150.0,0.00015854,2]
[400104307,1767118232570,-150.0,0.00015854,2]
[400104309,1767118232580,-150.0,0.0001586,2]
[400104311,1767118232590,-500.0,0.0001586,2]
[400104313,1767118232600,-166.66,0.00015888,2]
[400104315,1767118232610,-150.0,0.00015915,2]
[400104317,1767118232620,-150.0,0.00015915,2]
[400104319,1767118232629,-150.0,0.00015915,2]
[400104321,1767118232639,-150.0,0.00015915,2]
[400104323,1767118232649,-150.0,0.00015915,2]
[400104325,1767118232659,-500.47,0.00015915,2]
[400104328,1767118232670,-150.0,0.00015915,2]
[400104330,1767118232679,-500.0,0.00015915,2]
[400104332,1767118232689,-208.40599832,0.0001597,2]
[400104334,1767118232699,-150.0,0.0001597,2]
[400104336,1767118232709,-156.69457303,0.0001597,2]
[400104338,1767118232718,-204.22488612,0.0001597,2]
[400104340,1767118232729,-500.0,0.0001597,2]
[400104342,1767118232739,-9154.99230081,0.00015971,2]
[400104344,1767118232749,-1195.3424,0.00015989,2]
[400104346,1767118232759,-150.0,0.00016025,2]
[400104348,1767118232768,-300.0,0.00016025,2]
[400104350,1767118232778,-3330.23200075,0.00016025,2]
[400104353,1767118232791,-7640.54820298,0.00016025,2]
[400104354,1767118232800,-333.23888832,0.00016079,2]
[400104355,1767118232810,-150.0,0.00016079,2]
[400104356,1767118232819,-622.08558601,0.00016088,2]
[400104358,1767118232829,-227.84327685,0.00016088,2]